fUST/lending_fUST_20251101
["ID","MTS","AMOUNT","RATE_DAILY","PERIOD"]
[392794943,1761955832699,-500.0,0.00033648,7]
[392794945,1761955832710,-500.0,0.00033648,7]
[392794947,1761955832719,-500.0,0.00033648,7]
[392794949,1761955832728,-500.0,0.00033648,7]
[392794951,1761955832738,-500.0,0.00033648,7]
[392794953,1761955832748,-500.0,0.00033648,7]
[392794955,1761955832757,-500.0,0.00033648,7]
[392794957,1761955832766,-500.0,0.00033648,7]
[392794959,1761955832775,-500.0,0.00033648,7]
[392794960,1761955832784,-500.0,0.00033648,7]
[392794962,1761955832793,-500.0,0.00033648,7]
[392794964,1761955832802,-500.0,0.00033648,7]
[392794966,1761955832812,-500.0,0.00033648,7]
[392794968,1761955832821,-524.8118543,0.00033648,7]
[392794970,1761955832830,-500.0,0.00033649,3]
[392794972,1761955832839,-500.0,0.00033923,3]
[392794974,1761955832849,-500.0,0.00034197,3]
[392794976,1761955832858,-500.0,0.00034471,3]
[392794978,1761955832867,-500.0,0.00034745,3]
[392794980,1761955832876,-381.77,0.00034777,4]
[392794982,1761955832885,-151.0,0.00034856,2]
[392794984,1761955832894,-151.0,0.00034856,2]
[392794986,1761955832904,-151.0,0.00034856,2]
[392794988,1761955832912,-151.0,0.00034856,2]
[392794990,1761955832921,-151.0,0.00034856,2]
[392794992,1761955832930,-151.0,0.00034856,2]
[392794994,1761955832939,-151.0,0.00034856,2]
[392794996,1761955832948,-151.0,0.00034856,2]
[392794998,1761955832957,-151.0,0.00034856,2]
[392795000,1761955832966,-151.0,0.00034856,2]
[392795002,1761955832975,-151.0,0.00034856,2]
[392795004,1761955832984,-151.0,0.00034856,2]
[392795006,1761955832993,-151.0,0.00034856,2]
[392795008,1761955833002,-151.0,0.00034856,2]
[392795010,1761955833013,-151.0,0.00034856,2]
[392795012,1761955833022,-151.0,0.00034856,2]
[392795014,1761955833032,-151.0,0.00034856,2]
[392795016,1761955833041,-151.0,0.00034856,2]
[392795018,1761955833050,-151.0,0.00034856,2]
[392795020,1761955833059,-151.0,0.00034856,2]
[392795022,1761955833068,-500.0,0.00034877,4]
[392795024,1761955833077,-500.0,0.00034877,4]
[392795026,1761955833087,-500.0,0.00034877,4]
[392795028,1761955833096,-500.0,0.00034877,4]
[392795030,1761955833105,-500.0,0.00035019,3]
[392795032,1761955833115,-150.0,0.00035019,2]
[392795034,1761955833125,-500.0,0.0003515,4]
[392795036,1761955833134,-500.0,0.0003515,4]
[392795038,1761955833143,-500.0,0.0003515,2]
[392795040,1761955833152,-500.0,0.0003515,2]
[392795042,1761955833162,-500.0,0.00035151,4]
[392795044,1761955833171,-330.42160723,0.00035151,4]
[392795046,1761955833180,-500.0,0.00035151,4]
[392795048,1761955833189,-500.0,0.00035151,4]
[392795050,1761955833199,-168.0,0.00035161,2]
[392795052,1761955833208,-500.0,0.00035293,3]
[392795054,1761955833218,-179.71246006,0.00035348,14]
[392795056,1761955833227,-284.5497704,0.00035395,2]
[392795058,1761955833236,-325.1997376,0.00035395,2]
[392795060,1761955833245,-507.61646541,0.00035395,2]
[392795062,1761955833254,-392.28827505,0.00035425,4]
[392795064,1761955833264,-500.0,0.00035425,4]
[392795066,1761955833273,-371.72118887,0.00035471,5]
[392795068,1761955833285,-500.0,0.00035471,5]
[392795070,1761955833295,-500.0,0.00035471,5]
[392795072,1761955833304,-500.0,0.00035567,3]
[392795074,1761955833314,-500.0,0.00035698,4]
[392795076,1761955833323,-500.0,0.00035698,2]
[392795078,1761955833332,-448.97716752,0.00035699,4]
[392795080,1761955833341,-151.0,0.00035699,2]
[392795082,1761955833351,-151.0,0.00035699,2]
[392795084,1761955833360,-500.0,0.00035699,4]
[392795086,1761955833369,-500.0,0.00035699,4]
[392795088,1761955833378,-500.0,0.00035699,4]
[392795090,1761955833387,-151.0,0.00035754,2]
[392795092,1761955833396,-500.0,0.00035754,4]
[392795094,1761955833405,-500.0,0.00035754,4]
[392795096,1761955833415,-500.0,0.00035754,4]
[392795098,1761955833424,-258.47090245,0.00035809,2]
[392795100,1761955833433,-500.0,0.00035809,4]
[392795102,1761955833443,-500.0,0.00035809,4]
[392795104,1761955833452,-500.0,0.00035809,4]
[392795106,1761955833462,-640.0,0.00035818,2]
[392795108,1761955833471,-500.0,0.00035841,3]
[392795110,1761955833481,-500.0,0.00035863,4]
[392795112,1761955833490,-500.0,0.00035863,4]
[392795114,1761955833499,-500.0,0.00035863,4]
[392795115,1761955833509,-500.0,0.00035918,4]
[392795117,1761955833518,-500.0,0.00035918,4]
[392795119,1761955833528,-500.0,0.00035918,4]
[392795120,1761955833537,-500.0,0.00035973,4]
[392795121,1761955833547,-500.0,0.00035973,4]
[392795122,1761955833556,-500.0,0.00035973,4]
[392795123,1761955833566,-2904.76582536,0.00036006,2]
[392795124,1761955833575,-500.0,0.00036028,4]
[392795125,1761955833584,-500.0,0.00036028,4]
[392795126,1761955833595,-500.0,0.00036028,4]
[392795127,1761955833605,-369.46277577,0.00036083,4]
[392795128,1761955833615,-500.0,0.00036083,4]
[392795129,1761955833625,-198.5753748,0.00036083,4]
[392795130,1761955833635,-508.09274881,0.00036115,3]
[392795131,1761955833645,-500.0,0.00036137,4]
[392795132,1761955833656,-500.0,0.00036192,4]
[392795133,1761955833665,-971.0,0.00036206,7]
[392795134,1761955833675,-1733.56521295,0.00036243,2]
[392795135,1761955833684,-500.0,0.00036247,4]
[392795136,1761955833693,-230.89925053,0.0003625,15]
[392795137,1761955833703,-36306.83075045,0.00036251,3]
[392795138,1761955833716,-7730.57560728,0.00036251,3]
[392795139,1761955833727,-686.63713784,0.00036251,3]
[392795140,1761955833739,-2761.31332446,0.00036251,3]
[392795141,1761955833750,-49921.93032427,0.00036251,3]
[392795142,1761955833759,-1849.51182928,0.00036251,3]
[392795143,1761955833769,-2904.76582532,0.00036261,2]
[392795144,1761955833778,-412.0,0.00036275,2]
[392795145,1761955833787,-500.0,0.00036302,4]
[392795146,1761955833796,-500.0,0.00036357,4]
[392795147,1761955833805,-851.0,0.0003636,2]
[392795148,1761955833815,-500.0,0.00036411,4]
[392795149,1761955833824,-500.0,0.00036466,4]
[392795150,1761955833834,-2904.76582532,0.00036517,2]
[392795151,1761955833844,-500.0,0.00036521,4]
[392795152,1761955833853,-500.0,0.00036576,4]
[392795153,1761955833863,-500.70653643,0.00036631,4]
[392795154,1761955833874,-851.0,0.00036693,2]
[392795155,1761955833885,-1233.3800632,0.00036696,2]
[392795156,1761955833895,-288.1886427,0.00036696,2]
[392795157,1761955833904,-163.20295,0.00036698,5]
[392795158,1761955833913,-1733.56521295,0.00036704,2]
[392795159,1761955833923,-2346.8800666,0.00036707,2]
[392795160,1761955833932,-1733.56521295,0.00036716,2]
[392795161,1761955833941,-320.0,0.00036771,2]
[392795162,1761955833952,-1592.78399061,0.00036772,2]
[392795163,1761955833964,-850.00614396,0.00036772,2]
[392795164,1761955833976,-461.97569075,0.00036772,2]
[392795165,1761955833987,-163.20295,0.00036859,4]
[392795166,1761955833996,-161.0,0.00037,120]
[392795167,1761955834009,-816.97135975,0.00037018,2]
[392795168,1761955834023,-183886.02462137,0.00037018,2]
[392795169,1761955834036,-1076.91809848,0.00037018,2]
[392795170,1761955834047,-3063.93994465,0.00037018,2]
[392795171,1761955834059,-132827.33348224,0.00037018,2]
[392795188,1761955838181,-13542.7135072,0.00037018,2]
[392795189,1761955838194,-79137.49479015,0.00037018,2]
[392795190,1761955838257,-40788.0959501,0.00037018,2]
[392795191,1761955838269,-8784.3933303,0.00037018,2]
[392795192,1761955838280,-19021.35759496,0.00037018,2]
[392795193,1761955838291,-52327.76101635,0.00037018,2]
[392795194,1761955838301,-22547.90198403,0.00037018,2]
[392795195,1761955838312,-56906.60556757,0.00037018,2]
[392795196,1761955838322,-52319.08638904,0.00037018,2]
[392795197,1761955838333,-17953.40236381,0.00037018,2]
[392795198,1761955838342,-2773.54437366,0.00037018,2]
[392795199,1761955838352,-151.0,0.00037018,31]
[392795200,1761955838361,-151.0,0.00037018,31]
[392795201,1761955838370,-515.755012,0.00037018,31]
[392795202,1761955838386,-515.755012,0.00037018,31]
[392795203,1761955838403,-500.0,0.00037026,4]
[392795204,1761955838412,-500.0,0.00037026,2]
[392795206,1761955838422,-2904.76582532,0.00037027,2]
[392795208,1761955838431,-300.0,0.000371,2]
[392795210,1761955838440,-300.0,0.000371,2]
[392795212,1761955838449,-300.0,0.000371,2]
[392795214,1761955838459,-151.0,0.000371,11]
[392795216,1761955838468,-151.0,0.000371,16]
[392795218,1761955838478,-151.0,0.000371,19]
[392795220,1761955838487,-151.0,0.000371,15]
[392795222,1761955838496,-151.0,0.000371,20]
[392795224,1761955838506,-151.0,0.000371,19]
[392795226,1761955838515,-151.0,0.000371,14]
[392795227,1761955838524,-500.0,0.00037115,2]
[392795229,1761955838533,-500.0,0.00037115,2]
[392795231,1761955838542,-151.0,0.00037115,2]
[392795233,1761955838552,-500.0,0.00037115,2]
[392795235,1761955838561,-500.0,0.00037115,2]
[392795237,1761955838570,-500.0,0.00037117,4]
[392795239,1761955838579,-500.0,0.00037117,2]
[392795241,1761955838588,-5326.37388805,0.00037117,3]
[392795242,1761955838599,-45542.53309494,0.00037117,3]
[392795263,1761955840230,-515.755012,0.00037018,31]
[392795264,1761955840240,-1111.800745,0.00037117,3]
[392795265,1761955840393,-3e-08,0.00037117,3]
[392795274,1761955843107,-515.755012,0.00037018,31]
[392795275,1761955843117,-337648.44084898,0.00037117,3]
[392795276,1761955843126,-20344.6301221,0.00037117,3]
[392795277,1761955843136,-151.0,0.00037118,2]
[392795278,1761955843145,-195.321749,0.00037118,31]
[392795279,1761955843154,-151.0,0.00037118,2]
[392795280,1761955843164,-195.321749,0.00037118,31]
[392795281,1761955843173,-195.321749,0.00037118,31]
[392795282,1761955843183,-195.321749,0.00037118,31]
[392795283,1761955843192,-151.0,0.00037118,31]
[392795284,1761955843201,-151.0,0.00037118,31]
[392795285,1761955843211,-151.0,0.00037118,31]
[392795286,1761955843220,-515.755012,0.00037118,31]
[392795287,1761955843229,-515.755012,0.00037118,31]
[392795288,1761955843239,-515.755012,0.00037118,31]
[392795289,1761955843248,-515.755012,0.00037118,31]
[392795290,1761955843257,-540.32849465,0.00037127,4]
[392795291,1761955843266,-151.0,0.00037127,31]
[392795292,1761955843276,-479.52743777,0.00037127,4]
[392795293,1761955843285,-14796.0946342,0.00037127,3]
[392795294,1761955843294,-500.0,0.00037127,30]
[392795295,1761955843303,-156.265,0.00037136,2]
[392795296,1761955843312,-277.738654,0.00037137,31]
[392795297,1761955843321,-151.0,0.00037137,31]
[392795298,1761955843333,-151.0,0.00037137,31]
[392795299,1761955843343,-151.0,0.00037137,31]
[392795300,1761955843353,-151.0,0.00037137,31]
[392795301,1761955843362,-151.0,0.00037137,31]
[392795302,1761955843373,-151.430738,0.00037137,31]
[392795303,1761955843382,-152.976021,0.00037137,31]
[392795304,1761955843392,-151.0,0.00037137,31]
[392795305,1761955843402,-151.0,0.00037137,31]
[392795306,1761955843411,-151.0,0.00037137,31]
[392795307,1761955843420,-151.0,0.00037137,31]
[392795308,1761955843430,-151.581025,0.00037137,31]
[392795309,1761955843439,-151.0,0.00037137,2]
[392795310,1761955843449,-195.321749,0.00037137,31]
[392795311,1761955843459,-195.321749,0.00037137,31]
[392795312,1761955843469,-151.0,0.00037137,2]
[392795313,1761955843478,-195.321749,0.00037137,31]
[392795314,1761955843487,-195.321749,0.00037137,31]
[392795315,1761955843498,-151.0,0.00037137,31]
[392795316,1761955843508,-971.0,0.00037151,2]
[392795317,1761955843518,-500.0,0.0003717,2]
[392795318,1761955843528,-500.0,0.0003717,2]
[392795319,1761955843537,-171.33229204,0.0003717,2]
[392795320,1761955843546,-500.0,0.0003717,2]
[392795321,1761955843557,-500.0,0.0003717,2]
[392795322,1761955843566,-500.0,0.00037173,5]
[392795323,1761955843579,-532.28027226,0.00037173,5]
[392795324,1761955843591,-598.3898703,0.00037173,5]
[392795325,1761955843603,-500.0,0.00037173,5]
[392795326,1761955843614,-150.0,0.00037173,5]
[392795327,1761955843625,-500.0,0.00037173,5]
[392795328,1761955843637,-500.0,0.00037173,5]
[392795329,1761955843648,-500.0,0.00037173,5]
[392795330,1761955843658,-500.0,0.00037173,5]
[392795331,1761955843667,-320.0,0.0003719,7]
[392795332,1761955843677,-3912.71,0.000372,14]
[392795333,1761955843688,-500.0,0.00037225,2]
[392795334,1761955843699,-500.0,0.00037225,2]
[392795335,1761955843709,-500.0,0.00037225,2]
[392795336,1761955843719,-500.0,0.00037225,2]
[392795337,1761955843730,-500.0,0.00037228,5]
[392795338,1761955843740,-500.0,0.00037228,5]
[392795339,1761955843751,-500.0,0.00037228,5]
[392795340,1761955843762,-500.0,0.00037228,5]
[392795341,1761955843772,-150.0,0.00037236,2]
[392795342,1761955843783,-300.0,0.00037236,2]
[392795343,1761955843793,-308.34078578,0.00037258,2]
[392795344,1761955843804,-352.03707999,0.00037258,2]
[392795345,1761955843814,-590.45477774,0.00037258,2]
[392795346,1761955843824,-2167.99514326,0.00037258,2]
[392795347,1761955843835,-1062.81859994,0.00037258,2]
[392795348,1761955843847,-450.0,0.0003727,2]
[392795349,1761955843858,-600.0,0.0003727,2]
[392795350,1761955843871,-750.0,0.0003727,2]
[392795351,1761955843884,-807.12271215,0.0003727,2]
[392795352,1761955843896,-151.0,0.0003727,4]
[392795353,1761955843906,-151.0,0.0003727,31]
[392795354,1761955843916,-515.755012,0.0003727,31]
[392795355,1761955843927,-515.755012,0.0003727,31]
[392795356,1761955843939,-515.755012,0.0003727,31]
[392795357,1761955843950,-515.755012,0.0003727,31]
[392795358,1761955843960,-1088.90233333,0.00037271,3]
[392795451,1761955957352,150.0,0.0002589,2]
[392795452,1761955958083,-177.0,0.0002789,2]
[392795454,1761955958233,204.0,0.0002989,2]
[392795510,1761956112191,213.96859442,0.00037947,30]
[392795585,1761956269663,215.34157955,0.0002589,2]
[392795631,1761956437912,-210.71841071,0.00033486,2]
[392795632,1761956437934,-615.58613159,0.00033928,2]
[392795635,1761956439217,-826.3045423,0.00033928,2]
[392795827,1761956831519,-2493.59401431,0.00033928,2]
[392795828,1761956831550,-155.21825853,0.00034723,2]
[392795829,1761956831578,-1200.0,0.00035149,3]
[392795830,1761956831609,-1076.38545432,0.00035149,3]
[392795831,1761956831749,-149.61454568,0.00035149,3]
[392795832,1761956831781,-500.0,0.00035149,7]
[392795833,1761956831810,-156.60600248,0.00035149,7]
[392795834,1761956831843,-500.0,0.00035149,7]
[392795835,1761956831873,-500.0,0.00035149,7]
[392795836,1761956831904,-500.0,0.00035149,7]
[392795837,1761956831939,-500.0,0.00035149,7]
[392795838,1761956831971,-500.0,0.00035149,7]
[392795839,1761956832003,-510.07074292,0.00035149,7]
[392795840,1761956832036,-307.97455375,0.00035149,7]
[392795841,1761956832067,-540.32849465,0.0003515,4]
[392795842,1761956832094,-199.0,0.0003515,7]
[392795843,1761956832202,-501.812,0.0003515,4]
[392795844,1761956832232,-500.80009216,0.0003515,2]
[392795845,1761956832260,-1000.0,0.0003515,2]
[392795846,1761956832292,-500.0,0.0003515,2]
[392795849,1761956833259,-8026.44146583,0.0003515,2]
[392795850,1761956834607,-10000.01,0.0003515,2]
[392795851,1761956834713,-10000.01,0.0003515,2]
[392795852,1761956834837,-10000.01,0.0003515,2]
[392795853,1761956834965,-10000.01,0.0003515,2]
[392795854,1761956835081,-1973.51853417,0.0003515,2]
[392795855,1761956835110,-353.77070673,0.00035374,14]
[392795856,1761956835139,-880.00667349,0.00035788,2]
[392795857,1761956835168,-1009.26830994,0.00035798,2]
[392795858,1761956835235,-1566.88155134,0.00035798,2]
[392795859,1761956835267,-532.28027226,0.00035873,5]
[392795860,1761956835296,-598.3898703,0.00035873,5]
[392795861,1761956835331,-151.0,0.00035887,2]
[392795862,1761956835364,-151.0,0.00035887,2]
[392795863,1761956835396,-151.0,0.00035887,2]
[392795864,1761956835430,-151.0,0.00035887,2]
[392795865,1761956835464,-151.0,0.00035887,2]
[392795866,1761956835498,-151.0,0.00035887,2]
[392795867,1761956835532,-151.0,0.00035887,2]
[392795868,1761956835568,-151.0,0.00035887,2]
[392795869,1761956835601,-151.0,0.00035887,2]
[392795870,1761956835635,-151.0,0.00035887,2]
[392795871,1761956835671,-151.0,0.00035887,2]
[392795872,1761956835704,-151.0,0.00035887,2]
[392795873,1761956835737,-151.0,0.00035887,2]
[392795874,1761956835769,-151.0,0.00035887,2]
[392795875,1761956835801,-151.0,0.00035887,2]
[392795876,1761956835833,-151.0,0.00035887,2]
[392795877,1761956835867,-151.0,0.00035887,2]
[392795878,1761956835898,-151.0,0.00035887,2]
[392795879,1761956835930,-151.0,0.00035887,2]
[392795880,1761956835962,-151.0,0.00035887,2]
[392795881,1761956836004,-257.98029544,0.00035887,2]
[392795882,1761956836034,-161.62947537,0.00035897,15]
[392795883,1761956836117,-245.76,0.00035888,10]
[392795884,1761956836694,-613.69017326,0.00035898,3]
[392795885,1761956836711,-245.76,0.00035898,3]
[392795886,1761956836836,-9508.49,0.00035898,3]
[392795887,1761956836850,-10000.01,0.00035898,3]
[392795889,1761956837382,-10000.01,0.00035898,3]
[392795890,1761956837493,-10000.01,0.00035898,3]
[392795894,1761956846431,-468.64,0.00035898,10]
[392795895,1761956846467,-9062.73,0.00035898,3]
[392795897,1761956852476,-174.85049255,0.00035149,7]
[392795898,1761956852509,-522.18588522,0.00035149,2]
[392795899,1761956852540,-345.01216351,0.00035149,7]
[392795900,1761956852598,-7915.91291744,0.00035898,3]
[392795934,1761956885661,150.0,0.0002589,2]
[392795942,1761956908365,3888.37195796,0.00026,30]
[392796023,1761957032190,-177.0,0.0002789,2]
[392796025,1761957032200,-200.0,0.0002789,2]
[392796027,1761957032208,-204.0,0.0002989,2]
[392796029,1761957032217,-184.97025,0.0003,2]
[392796031,1761957032226,-1075.7565137,0.00032936,2]
[392796032,1761957032236,-662.180885,0.00033984,2]
[392796033,1761957032245,-500.0,0.0003515,4]
[392796034,1761957032254,-500.0,0.0003515,4]
[392796035,1761957032264,-500.0,0.0003515,4]
[392796036,1761957032273,-500.0,0.00035424,4]
[392796037,1761957032282,-500.0,0.00035424,4]
[392796038,1761957032291,-448.86900004,0.00035424,4]
[392796039,1761957032301,-251.40494227,0.00035698,4]
[392796040,1761957032311,-248.59505773,0.00035698,4]
[392796041,1761957032320,-151.0,0.00035887,2]
[392796042,1761957032329,-151.0,0.00035887,2]
[392796043,1761957032338,-109.94784564,0.00035887,2]
[392796192,1761957046364,-2172.34082152,0.00035872,2]
[392796193,1761957046374,-41.05215436,0.00035887,2]
[392796194,1761957046384,-151.0,0.00035887,2]
[392796195,1761957046393,-151.0,0.00035887,2]
[392796196,1761957046402,-151.0,0.00035887,2]
[392796197,1761957046412,-151.0,0.00035887,2]
[392796198,1761957046421,-151.0,0.00035887,2]
[392796199,1761957046440,-151.0,0.00035887,2]
[392796200,1761957046450,-151.0,0.00035887,2]
[392796201,1761957046460,-151.0,0.00035887,2]
[392796202,1761957046470,-151.0,0.00035887,2]
[392796203,1761957046480,-151.0,0.00035887,2]
[392796204,1761957046491,-151.0,0.00035887,2]
[392796205,1761957046500,-151.0,0.00035887,2]
[392796206,1761957046510,-151.0,0.00035887,2]
[392796207,1761957046520,-151.0,0.00035887,2]
[392796208,1761957046531,-151.0,0.00035887,2]
[392796209,1761957046540,-151.0,0.00035887,2]
[392796210,1761957046550,-151.0,0.00035887,2]
[392796211,1761957046561,-188.34,0.00035898,10]
[392796212,1761957046570,-359.15,0.00035898,10]
[392796213,1761957046581,-479.52743777,0.00035907,4]
[392796214,1761957046591,-500.0,0.00035907,2]
[392796215,1761957046602,-500.0,0.00035907,4]
[392796216,1761957046613,-999.0,0.00035907,120]
[392796217,1761957046623,-35839.64493562,0.00035907,2]
[392796218,1761957046633,-167.7856381,0.00035907,15]
[392796219,1761957046642,-256.44161708,0.00035907,15]
[392796220,1761957046653,-55787.1127459,0.00035908,2]
[392796221,1761957046662,-299.29,0.00035962,10]
[392796222,1761957046671,-500.0,0.00035972,4]
[392796223,1761957046680,-500.0,0.00036,5]
[392796224,1761957046689,-500.0,0.00036,15]
[392796225,1761957046698,-180.24,0.00036181,2]
[392796226,1761957046707,-500.0,0.00036181,4]
[392796227,1761957046716,-2172.34082148,0.00036201,2]
[392796228,1761957046725,-427.46000046,0.00036246,4]
[392796229,1761957046734,-1429.0,0.00036353,120]
[392796230,1761957046744,-500.0,0.00036455,4]
[392796231,1761957046754,-997.0,0.00036458,2]
[392796232,1761957046763,-2172.34082148,0.0003653,2]
[392796233,1761957046774,-997.0,0.00036687,2]
[392796234,1761957046783,-500.0,0.00036729,4]
[392796235,1761957046793,-161.782481,0.00036742,5]
[392796236,1761957046803,-997.0,0.00036772,2]
[392796237,1761957046812,-185.47222808,0.00036826,2]
[392796238,1761957046821,-2172.34082148,0.00036858,2]
[392796239,1761957046831,-150.0,0.00036882,2]
[392796240,1761957046840,-117717.364391,0.00036946,3]
[392796241,1761957046850,-1757.03623783,0.00036946,3]
[392796242,1761957046859,-3516.7879334,0.00036972,2]
[392796243,1761957046869,-2447.86,0.00037,2]
[392796244,1761957046879,-315.94,0.00037003,4]
[392796245,1761957046888,-352.0,0.00037019,2]
[392796246,1761957046897,-500.0,0.00037115,2]
[392796247,1761957046908,-500.0,0.00037115,2]
[392796248,1761957046927,-500.0,0.00037115,2]
[392796249,1761957046945,-500.0,0.00037115,2]
[392796250,1761957046955,-500.0,0.00037115,2]
[392796251,1761957046964,-500.0,0.00037115,30]
[392796252,1761957046974,-7244.4424432,0.00037159,2]
[392796253,1761957046983,-606.3185344,0.00037159,2]
[392796254,1761957046992,-500.0,0.0003717,2]
[392796255,1761957047001,-500.0,0.0003717,2]
[392796256,1761957047011,-500.0,0.0003717,2]
[392796257,1761957047020,-500.0,0.0003717,2]
[392796258,1761957047029,-500.0,0.0003717,2]
[392796259,1761957047038,-1880.0,0.0003717,2]
[392796260,1761957047047,-500.0,0.0003717,2]
[392796261,1761957047056,-171.33229204,0.0003717,2]
[392796262,1761957047066,-1203.0,0.0003717,2]
[392796263,1761957047075,-151.0,0.0003717,2]
[392796264,1761957047084,-500.0,0.0003717,2]
[392796265,1761957047094,-500.0,0.0003717,2]
[392796266,1761957047103,-151.0,0.0003717,2]
[392796267,1761957047113,-151.0,0.0003717,2]
[392796268,1761957047123,-500.0,0.0003717,2]
[392796269,1761957047131,-500.0,0.0003717,2]
[392796270,1761957047140,-500.0,0.0003717,2]
[392796271,1761957047149,-500.0,0.0003717,2]
[392796272,1761957047158,-500.0,0.0003717,2]
[392796273,1761957047167,-500.0,0.0003717,2]
[392796274,1761957047176,-500.0,0.0003717,2]
[392796275,1761957047185,-151.0,0.0003717,2]
[392796276,1761957047194,-151.0,0.0003717,2]
[392796277,1761957047202,-151.0,0.0003717,2]
[392796278,1761957047212,-500.0,0.0003717,2]
[392796279,1761957047221,-151.0,0.0003717,2]
[392796280,1761957047230,-246.5938335,0.0003717,2]
[392796282,1761957047240,-151.0,0.0003717,2]
[392796283,1761957047249,-151.0,0.0003717,2]
[392796284,1761957047258,-500.0,0.0003717,2]
[392796285,1761957047267,-500.0,0.0003717,2]
[392796286,1761957047275,-2172.34082148,0.00037187,2]
[392796287,1761957047284,-195.321749,0.00037188,31]
[392796288,1761957047293,-195.321749,0.00037188,31]
[392796289,1761957047303,-151.0,0.00037188,2]
[392796290,1761957047312,-195.321749,0.00037188,31]
[392796291,1761957047321,-151.0,0.00037188,2]
[392796292,1761957047331,-195.321749,0.00037188,31]
[392796293,1761957047340,-151.0,0.00037188,31]
[392796294,1761957047349,-228.856773,0.00037188,2]
[392796295,1761957047358,-151.0,0.00037188,31]
[392796296,1761957047368,-151.581025,0.00037188,31]
[392796297,1761957047378,-151.0,0.00037188,31]
[392796298,1761957047387,-117717.364391,0.00037188,3]
[392796299,1761957047396,-1757.03623783,0.00037188,3]
[392796300,1761957047406,-1193.36495251,0.00037224,2]
[392796301,1761957047415,-500.0,0.00037225,2]
[392796302,1761957047424,-500.0,0.00037225,2]
[392796303,1761957047433,-500.0,0.00037225,2]
[392796304,1761957047442,-500.0,0.00037225,2]
[392796305,1761957047451,-500.0,0.00037225,2]
[392796306,1761957047460,-1880.0,0.00037225,2]
[392796307,1761957047469,-500.0,0.00037225,2]
[392796308,1761957047479,-1203.0,0.00037225,2]
[392796309,1761957047488,-151.0,0.00037225,2]
[392796310,1761957047497,-500.0,0.00037225,2]
[392796311,1761957047507,-500.0,0.00037225,2]
[392796313,1761957047517,-151.0,0.00037225,2]
[392796314,1761957047527,-151.0,0.00037225,2]
[392796315,1761957047536,-500.0,0.00037225,2]
[392796316,1761957047545,-500.0,0.00037225,2]
[392796317,1761957047554,-500.0,0.00037225,2]
[392796318,1761957047564,-500.0,0.00037225,2]
[392796319,1761957047573,-500.0,0.00037225,2]
[392796320,1761957047586,-500.0,0.00037225,2]
[392796321,1761957047595,-500.0,0.00037225,2]
[392796322,1761957047604,-151.0,0.00037225,2]
[392796323,1761957047617,-151.0,0.00037225,2]
[392796324,1761957047626,-151.0,0.00037225,2]
[392796325,1761957047635,-500.0,0.00037225,2]
[392796326,1761957047644,-151.0,0.00037225,2]
[392796327,1761957047653,-500.0,0.00037225,2]
[392796328,1761957047662,-500.0,0.00037225,2]
[392796329,1761957047671,-1889.45528878,0.00037227,2]
[392796330,1761957047680,-2952.27388871,0.00037227,2]
[392796331,1761957047689,-379.29313928,0.00037227,2]
[392796332,1761957047698,-674.29891428,0.00037227,2]